[Event "*** SCC Grand Prix: Titled Tuesday Blitz"]
[Site "Chess.com"]
[Date "2020.07.21"]
[Round "4"]
[White "LyonBeast"]
[Black "EugeneRougon"]
[Result "1-0"]
[WhiteElo "3009"]
[BlackElo "2721"]
[TimeControl "180+1"]
[EndTime "10:38:38 PDT"]
[Termination "LyonBeast won by checkmate"]

1. d4 {[%clk 0:02:58.1]} 1... d6 {[%clk 0:02:51.5]} 2. e4 {[%clk 0:02:55.6]}
2... Nf6 {[%clk 0:02:50.9]} 3. Nc3 {[%clk 0:02:55]} 3... g6 {[%clk 0:02:51.2]}
4. Bf4 {[%clk 0:02:51.7]} 4... a6 {[%clk 0:02:43.5]} 5. Be2 {[%clk 0:02:38.2]}
5... Nc6 {[%clk 0:02:34.4]} 6. e5 {[%clk 0:02:32.6]} 6... Nd7 {[%clk 0:02:22.8]}
7. Nf3 {[%clk 0:02:30.4]} 7... Bg7 {[%clk 0:02:17.4]} 8. e6 {[%clk 0:01:59.4]}
8... fxe6 {[%clk 0:02:18.3]} 9. h4 {[%clk 0:01:59.8]} 9... e5 {[%clk 0:01:59.2]}
10. dxe5 {[%clk 0:02:00.7]} 10... Ndxe5 {[%clk 0:01:59.2]} 11. h5 {[%clk
0:02:01.1]} 11... Nxf3+ {[%clk 0:01:20.2]} 12. Bxf3 {[%clk 0:02:02]} 12... Nd4
{[%clk 0:01:20.3]} 13. hxg6 {[%clk 0:01:45.3]} 13... hxg6 {[%clk 0:01:16.1]} 14.
Rxh8+ {[%clk 0:01:46.2]} 14... Bxh8 {[%clk 0:01:17]} 15. Be4 {[%clk 0:01:46.6]}
15... Bf5 {[%clk 0:01:12.9]} 16. Bxf5 {[%clk 0:01:45.3]} 16... Nxf5 {[%clk
0:00:50.7]} 17. Qg4 {[%clk 0:01:38.3]} 17... Bxc3+ {[%clk 0:00:34.8]} 18. bxc3
{[%clk 0:01:39.2]} 18... Kf7 {[%clk 0:00:35]} 19. Qf3 {[%clk 0:01:39.7]} 19...
e5 {[%clk 0:00:23.7]} 20. Bd2 {[%clk 0:01:35.3]} 20... Qh4 {[%clk 0:00:13.3]}
21. Qd5+ {[%clk 0:01:18.6]} 21... Kg7 {[%clk 0:00:11.8]} 22. O-O-O {[%clk
0:01:18.9]} 22... c6 {[%clk 0:00:10.1]} 23. Qe6 {[%clk 0:01:13.7]} 23... Qf6
{[%clk 0:00:08.4]} 24. Qb3 {[%clk 0:01:05.4]} 24... Qf7 {[%clk 0:00:07.6]} 25.
Qa3 {[%clk 0:00:55.4]} 25... Rh8 {[%clk 0:00:07.2]} 26. g4 {[%clk 0:00:55.2]}
26... Nh4 {[%clk 0:00:06.9]} 27. Qxd6 {[%clk 0:00:54.2]} 27... Nf3 {[%clk
0:00:06.6]} 28. Kb2 {[%clk 0:00:53.1]} 28... Re8 {[%clk 0:00:05.4]} 29. Be3
{[%clk 0:00:52.3]} 29... Qe7 {[%clk 0:00:05.4]} 30. Qd3 {[%clk 0:00:46.2]} 30...
Rf8 {[%clk 0:00:04.4]} 31. Qe4 {[%clk 0:00:45.1]} 31... Qe6 {[%clk 0:00:04.3]}
32. g5 {[%clk 0:00:40.4]} 32... Rf5 {[%clk 0:00:04]} 33. Qb4 {[%clk 0:00:36.9]}
33... Qf7 {[%clk 0:00:02.6]} 34. Rd8 {[%clk 0:00:23.4]} 34... Nxg5 {[%clk
0:00:02.7]} 35. Qh4 {[%clk 0:00:23.3]} 35... Nh7 {[%clk 0:00:01.9]} 36. Bh6#
{[%clk 0:00:23.4]} 1-0

[Event "*** SCC Grand Prix: Titled Tuesday Blitz"]
[Site "Chess.com"]
[Date "2020.07.21"]
[Round "4"]
[White "elohunter1999"]
[Black "frederiksvane"]
[Result "0-1"]
[WhiteElo "2482"]
[BlackElo "2675"]
[TimeControl "180+1"]
[EndTime "10:38:38 PDT"]
[Termination "frederiksvane won by resignation"]

1. e4 {[%clk 0:03:00.9]} 1... c5 {[%clk 0:03:00.1]} 2. Nf3 {[%clk 0:03:00.9]}
2... e6 {[%clk 0:03:00.2]} 3. d4 {[%clk 0:03:01]} 3... cxd4 {[%clk 0:03:01.1]}
4. Nxd4 {[%clk 0:03:01.8]} 4... a6 {[%clk 0:03:01]} 5. Bd3 {[%clk 0:03:01.9]}
5... Bc5 {[%clk 0:03:00.2]} 6. Nb3 {[%clk 0:03:01.8]} 6... Be7 {[%clk
0:03:00.5]} 7. Qg4 {[%clk 0:03:01.9]} 7... g6 {[%clk 0:03:00.4]} 8. Qe2 {[%clk
0:03:02.1]} 8... d6 {[%clk 0:03:00.3]} 9. O-O {[%clk 0:03:02.3]} 9... Nd7 {[%clk
0:02:59.7]} 10. Nc3 {[%clk 0:03:02.5]} 10... Qc7 {[%clk 0:02:58.1]} 11. Bd2
{[%clk 0:03:02.1]} 11... Ngf6 {[%clk 0:02:51.1]} 12. Bh6 {[%clk 0:02:39.8]}
12... Bf8 {[%clk 0:02:43.1]} 13. Qd2 {[%clk 0:02:39.6]} 13... Ne5 {[%clk
0:02:12.4]} 14. Bxf8 {[%clk 0:02:31.3]} 14... Kxf8 {[%clk 0:02:09.7]} 15. f4
{[%clk 0:02:30.2]} 15... Nxd3 {[%clk 0:02:03.5]} 16. cxd3 {[%clk 0:02:16.1]}
16... Kg7 {[%clk 0:02:02.9]} 17. Rac1 {[%clk 0:01:58.4]} 17... b5 {[%clk
0:02:03]} 18. Kh1 {[%clk 0:01:54]} 18... Qb6 {[%clk 0:01:52.2]} 19. e5 {[%clk
0:01:48.2]} 19... dxe5 {[%clk 0:01:48.4]} 20. fxe5 {[%clk 0:01:49.1]} 20... Nd7
{[%clk 0:01:43.6]} 21. Qf4 {[%clk 0:01:34.1]} 21... Rf8 {[%clk 0:01:39.4]} 22.
Ne4 {[%clk 0:01:30.7]} 22... Bb7 {[%clk 0:00:54.1]} 23. Nf6 {[%clk 0:01:23.7]}
23... Rad8 {[%clk 0:00:54.1]} 24. d4 {[%clk 0:01:08.3]} 24... Nxf6 {[%clk
0:00:33.7]} 25. exf6+ {[%clk 0:01:05.5]} 25... Kh8 {[%clk 0:00:34.1]} 26. Qh6
{[%clk 0:00:34.8]} 26... Rg8 {[%clk 0:00:33.6]} 27. Rc3 {[%clk 0:00:25.5]} 27...
g5 {[%clk 0:00:24.7]} 28. Rh3 {[%clk 0:00:15.9]} 28... Be4 {[%clk 0:00:23.9]}
29. Nc5 {[%clk 0:00:16.1]} 29... Bg6 {[%clk 0:00:16.9]} 30. Qxg5 {[%clk
0:00:15.7]} 30... Rxd4 {[%clk 0:00:13.2]} 31. Qe5 {[%clk 0:00:14.2]} 31... Rd5
{[%clk 0:00:12.4]} 32. Qe3 {[%clk 0:00:05.3]} 32... Qxc5 {[%clk 0:00:11.7]} 33.
Qh6 {[%clk 0:00:05.5]} 33... Rh5 {[%clk 0:00:11.6]} 34. Rxh5 {[%clk 0:00:05.4]}
34... Qxh5 {[%clk 0:00:12.5]} 35. Qe3 {[%clk 0:00:05.5]} 35... Qd5 {[%clk
0:00:11.2]} 36. Rg1 {[%clk 0:00:04.4]} 36... Be4 {[%clk 0:00:11.4]} 37. h3
{[%clk 0:00:04.5]} 37... Bxg2+ {[%clk 0:00:11.7]} 38. Kh2 {[%clk 0:00:03.6]}
38... Qd6+ {[%clk 0:00:11.9]} 0-1

[Event "*** SCC Grand Prix: Titled Tuesday Blitz"]
[Site "Chess.com"]
[Date "2020.07.21"]
[Round "4"]
[White "petincash"]
[Black "Iljushin_Alexey"]
[Result "0-1"]
[WhiteElo "2351"]
[BlackElo "2688"]
[TimeControl "180+1"]
[EndTime "10:38:39 PDT"]
[Termination "Iljushin_Alexey won by checkmate"]

1. e4 {[%clk 0:03:00.9]} 1... c6 {[%clk 0:02:59.9]} 2. d4 {[%clk 0:02:53.1]}
2... d5 {[%clk 0:03:00.4]} 3. e5 {[%clk 0:02:53.7]} 3... Bf5 {[%clk 0:03:00.2]}
4. Bd3 {[%clk 0:02:54.3]} 4... Bxd3 {[%clk 0:02:59.9]} 5. Qxd3 {[%clk
0:02:54.6]} 5... e6 {[%clk 0:03:00.5]} 6. Ne2 {[%clk 0:02:52.2]} 6... Qa5+
{[%clk 0:03:00.2]} 7. Nbc3 {[%clk 0:02:48.4]} 7... Qa6 {[%clk 0:03:00.1]} 8. Qg3
{[%clk 0:02:38.9]} 8... Nd7 {[%clk 0:02:58.1]} 9. O-O {[%clk 0:02:32.5]} 9... h5
{[%clk 0:02:57.3]} 10. h3 {[%clk 0:02:08.1]} 10... Ne7 {[%clk 0:02:52.5]} 11. a4
{[%clk 0:01:54.8]} 11... Nf5 {[%clk 0:02:50.6]} 12. Qf3 {[%clk 0:01:49.4]} 12...
h4 {[%clk 0:02:43.6]} 13. Rb1 {[%clk 0:01:36.9]} 13... Bb4 {[%clk 0:02:40.9]}
14. Qg4 {[%clk 0:01:32.8]} 14... g6 {[%clk 0:02:30.6]} 15. Bg5 {[%clk
0:01:28.2]} 15... Rc8 {[%clk 0:02:06.1]} 16. Rfd1 {[%clk 0:01:26.7]} 16... Qb6
{[%clk 0:01:55.1]} 17. Na2 {[%clk 0:00:57.4]} 17... a5 {[%clk 0:01:54.8]} 18. c3
{[%clk 0:00:47.7]} 18... Be7 {[%clk 0:01:51.7]} 19. Bxe7 {[%clk 0:00:45]} 19...
Kxe7 {[%clk 0:01:51.7]} 20. b4 {[%clk 0:00:45.1]} 20... axb4 {[%clk 0:01:51.1]}
21. cxb4 {[%clk 0:00:44.4]} 21... Qd8 {[%clk 0:01:39.2]} 22. Nac3 {[%clk
0:00:43.8]} 22... Kf8 {[%clk 0:01:30.4]} 23. Nf4 {[%clk 0:00:43.2]} 23... Kg7
{[%clk 0:01:22.7]} 24. Rd3 {[%clk 0:00:40]} 24... Qe7 {[%clk 0:01:18.7]} 25. a5
{[%clk 0:00:31.5]} 25... Kh6 {[%clk 0:01:17.1]} 26. Na4 {[%clk 0:00:28.9]} 26...
Qg5 {[%clk 0:01:15.4]} 27. Qf3 {[%clk 0:00:28.6]} 27... Kg7 {[%clk 0:01:10.7]}
28. Nc5 {[%clk 0:00:27.1]} 28... Nxc5 {[%clk 0:01:04.6]} 29. bxc5 {[%clk
0:00:27.3]} 29... Rc7 {[%clk 0:01:03.4]} 30. Ne2 {[%clk 0:00:25.2]} 30... Ra8
{[%clk 0:01:00.2]} 31. Ra3 {[%clk 0:00:12.2]} 31... Qe7 {[%clk 0:00:56.5]} 32.
Qd3 {[%clk 0:00:11]} 32... Ra7 {[%clk 0:00:55.6]} 33. Nf4 {[%clk 0:00:10.6]}
33... Qg5 {[%clk 0:00:53.8]} 34. Ne2 {[%clk 0:00:09.5]} 34... Qh6 {[%clk
0:00:52]} 35. Kh2 {[%clk 0:00:08.1]} 35... Qh8 {[%clk 0:00:51.4]} 36. f4 {[%clk
0:00:08.3]} 36... Qa8 {[%clk 0:00:50]} 37. Qc3 {[%clk 0:00:08.7]} 37... Qd8
{[%clk 0:00:50]} 38. Rab3 {[%clk 0:00:08.9]} 38... Rd7 {[%clk 0:00:49.5]} 39.
Rb6 {[%clk 0:00:09]} 39... Qa8 {[%clk 0:00:48.5]} 40. R1b3 {[%clk 0:00:09.1]}
40... Rxa5 {[%clk 0:00:48]} 41. Rxb7 {[%clk 0:00:07.8]} 41... Rxb7 {[%clk
0:00:45.7]} 42. Rxb7 {[%clk 0:00:08.5]} 42... Rxc5 {[%clk 0:00:43.9]} 43. Qxc5
{[%clk 0:00:07.9]} 43... Qxb7 {[%clk 0:00:43.4]} 44. Nc3 {[%clk 0:00:06.2]}
44... Qa6 {[%clk 0:00:40.2]} 45. Nd1 {[%clk 0:00:03]} 45... Qf1 {[%clk
0:00:35.6]} 46. Qc2 {[%clk 0:00:02.4]} 46... Ng3 {[%clk 0:00:33]} 47. Qd2 {[%clk
0:00:02.2]} 47... Qh1# {[%clk 0:00:32.1]} 0-1

[Event "*** SCC Grand Prix: Titled Tuesday Blitz"]
[Site "Chess.com"]
[Date "2020.07.21"]
[Round "4"]
[White "DonBroca"]
[Black "bsnsun"]
[Result "0-1"]
[WhiteElo "2086"]
[BlackElo "2384"]
[TimeControl "180+1"]
[EndTime "10:38:41 PDT"]
[Termination "bsnsun won on time"]

1. e4 {[%clk 0:03:00.9]} 1... d6 {[%clk 0:02:59.4]} 2. d4 {[%clk 0:02:55.4]}
2... g6 {[%clk 0:02:58.8]} 3. Nf3 {[%clk 0:02:52.7]} 3... Bg7 {[%clk 0:02:58.1]}
4. c3 {[%clk 0:02:50.9]} 4... a6 {[%clk 0:02:58.2]} 5. Be3 {[%clk 0:02:50.1]}
5... b5 {[%clk 0:02:58.3]} 6. g3 {[%clk 0:02:49.3]} 6... Bb7 {[%clk 0:02:58.3]}
7. Nbd2 {[%clk 0:02:48.6]} 7... e5 {[%clk 0:02:57.2]} 8. d5 {[%clk 0:02:48.6]}
8... Ne7 {[%clk 0:02:52.6]} 9. Bg2 {[%clk 0:02:47.6]} 9... h6 {[%clk 0:02:45.5]}
10. O-O {[%clk 0:02:44.8]} 10... f5 {[%clk 0:02:44.8]} 11. Nh4 {[%clk
0:02:33.1]} 11... O-O {[%clk 0:02:22.4]} 12. exf5 {[%clk 0:02:20.2]} 12... gxf5
{[%clk 0:02:21.9]} 13. f4 {[%clk 0:02:02]} 13... e4 {[%clk 0:02:19.7]} 14. Nb3
{[%clk 0:01:59]} 14... Nxd5 {[%clk 0:02:16.4]} 15. Bd4 {[%clk 0:01:49]} 15...
Bxd4+ {[%clk 0:01:41.5]} 16. Qxd4 {[%clk 0:01:49.9]} 16... c5 {[%clk 0:01:41.7]}
17. Qd2 {[%clk 0:01:37.5]} 17... Qf6 {[%clk 0:01:31.3]} 18. Rad1 {[%clk
0:01:25.9]} 18... Nd7 {[%clk 0:01:22.6]} 19. Rfe1 {[%clk 0:01:24.2]} 19... N7b6
{[%clk 0:01:18.2]} 20. Nxf5 {[%clk 0:01:20.7]} 20... Qxf5 {[%clk 0:01:10.6]} 21.
Bxe4 {[%clk 0:01:19]} 21... Qf6 {[%clk 0:01:11]} 22. Qg2 {[%clk 0:00:52.9]}
22... Rae8 {[%clk 0:01:05.6]} 23. Rxd5 {[%clk 0:00:40.4]} 23... Bxd5 {[%clk
0:00:55]} 24. Bxd5+ {[%clk 0:00:41.3]} 24... Nxd5 {[%clk 0:00:55]} 25. Qxd5+
{[%clk 0:00:42.2]} 25... Kg7 {[%clk 0:00:53.8]} 26. Rd1 {[%clk 0:00:41.9]} 26...
Re6 {[%clk 0:00:50.4]} 27. Nd2 {[%clk 0:00:39.7]} 27... Rfe8 {[%clk 0:00:48.7]}
28. Nf3 {[%clk 0:00:39.8]} 28... Re3 {[%clk 0:00:45]} 29. Nh4 {[%clk 0:00:30.5]}
29... Re1+ {[%clk 0:00:30]} 30. Rxe1 {[%clk 0:00:29.2]} 30... Rxe1+ {[%clk
0:00:30.9]} 31. Kf2 {[%clk 0:00:29.6]} 31... Qe6 {[%clk 0:00:30]} 32. Nf5+
{[%clk 0:00:16.1]} 32... Kh7 {[%clk 0:00:18.4]} 33. Qb7+ {[%clk 0:00:10.8]}
33... Kg6 {[%clk 0:00:15.5]} 34. Nh4+ {[%clk 0:00:09.9]} 34... Kf6 {[%clk
0:00:15.1]} 35. Qf3 {[%clk 0:00:06.3]} 35... Rb1 {[%clk 0:00:11.9]} 36. f5
{[%clk 0:00:02.1]} 36... Qe1+ {[%clk 0:00:11.4]} 37. Kg2 {[%clk 0:00:01.9]}
37... Qh1+ {[%clk 0:00:10.9]} 38. Kh3 {[%clk 0:00:01.2]} 38... Qxf3 {[%clk
0:00:10.9]} 39. Nxf3 {[%clk 0:00:02.1]} 39... Kxf5 {[%clk 0:00:11.4]} 0-1

[Event "*** SCC Grand Prix: Titled Tuesday Blitz"]
[Site "Chess.com"]
[Date "2020.07.21"]
[Round "4"]
[White "XDPS"]
[Black "TST2014"]
[Result "1-0"]
[WhiteElo "2732"]
[BlackElo "2512"]
[TimeControl "180+1"]
[EndTime "10:38:42 PDT"]
[Termination "XDPS won by resignation"]

1. e4 {[%clk 0:03:00.9]} 1... c5 {[%clk 0:02:10.6]} 2. Nf3 {[%clk 0:03:00.2]}
2... Nc6 {[%clk 0:02:10]} 3. Bb5 {[%clk 0:02:52.8]} 3... g6 {[%clk 0:02:09.9]}
4. Bxc6 {[%clk 0:02:51.9]} 4... dxc6 {[%clk 0:02:10.8]} 5. d3 {[%clk 0:02:52.5]}
5... Bg7 {[%clk 0:02:10.9]} 6. h3 {[%clk 0:02:53.1]} 6... Nf6 {[%clk 0:02:10.7]}
7. Nc3 {[%clk 0:02:53.7]} 7... Nd7 {[%clk 0:02:11]} 8. O-O {[%clk 0:02:53.4]}
8... e5 {[%clk 0:02:10]} 9. Nh2 {[%clk 0:02:53.5]} 9... O-O {[%clk 0:02:09.5]}
10. f4 {[%clk 0:02:53.6]} 10... exf4 {[%clk 0:02:08.3]} 11. Bxf4 {[%clk
0:02:54.5]} 11... Ne5 {[%clk 0:02:06.3]} 12. Qd2 {[%clk 0:02:54.2]} 12... Be6
{[%clk 0:01:55.3]} 13. Bh6 {[%clk 0:02:45.3]} 13... Qh4 {[%clk 0:01:49.6]} 14.
Bg5 {[%clk 0:02:37.9]} 14... Qh5 {[%clk 0:01:48.4]} 15. Ne2 {[%clk 0:02:31.3]}
15... f6 {[%clk 0:01:20.5]} 16. Be3 {[%clk 0:02:27.9]} 16... b6 {[%clk
0:01:06.7]} 17. Nf4 {[%clk 0:02:26.2]} 17... Nc4 {[%clk 0:00:56.8]} 18. dxc4
{[%clk 0:02:02.3]} 18... Qe5 {[%clk 0:00:54.6]} 19. Nxe6 {[%clk 0:01:51.8]}
19... Qxe6 {[%clk 0:00:52.3]} 20. b3 {[%clk 0:01:26]} 20... Rad8 {[%clk
0:00:48.9]} 21. Qf2 {[%clk 0:01:09.3]} 21... Qxe4 {[%clk 0:00:46.5]} 22. Rae1
{[%clk 0:00:59.3]} 22... f5 {[%clk 0:00:19.5]} 23. Bxc5 {[%clk 0:00:48.6]} 23...
Bd4 {[%clk 0:00:11.8]} 24. Bxd4 {[%clk 0:00:46.7]} 24... Qxd4 {[%clk 0:00:10.9]}
25. Qxd4 {[%clk 0:00:46.4]} 25... Rxd4 {[%clk 0:00:11.8]} 26. Nf3 {[%clk
0:00:47.3]} 26... Rd6 {[%clk 0:00:10.3]} 27. Rd1 {[%clk 0:00:47.3]} 27... Rfd8
{[%clk 0:00:09.8]} 28. Rxd6 {[%clk 0:00:47.5]} 28... Rxd6 {[%clk 0:00:10.7]} 29.
Re1 {[%clk 0:00:48.2]} 29... Kf7 {[%clk 0:00:10.7]} 30. Kf2 {[%clk 0:00:48.3]}
30... a6 {[%clk 0:00:09.9]} 31. Ne5+ {[%clk 0:00:48]} 31... Kf6 {[%clk
0:00:09.5]} 32. Nd3 {[%clk 0:00:48.9]} 32... b5 {[%clk 0:00:09.1]} 33. c5 {[%clk
0:00:48.9]} 33... Rd5 {[%clk 0:00:08.8]} 34. Kf3 {[%clk 0:00:49.1]} 34... g5
{[%clk 0:00:08.8]} 35. g4 {[%clk 0:00:48.7]} 35... h5 {[%clk 0:00:08.8]} 36. Re8
{[%clk 0:00:46.1]} 36... fxg4+ {[%clk 0:00:07.9]} 37. hxg4 {[%clk 0:00:47]}
37... h4 {[%clk 0:00:07.3]} 38. Rc8 {[%clk 0:00:44.5]} 38... h3 {[%clk
0:00:03.6]} 39. Rxc6+ {[%clk 0:00:44.9]} 39... Kg7 {[%clk 0:00:04.1]} 40. Kg3
{[%clk 0:00:43.9]} 40... Rxd3+ {[%clk 0:00:03.6]} 41. cxd3 {[%clk 0:00:43.4]}
41... h2 {[%clk 0:00:04.5]} 42. Kxh2 {[%clk 0:00:43]} 42... a5 {[%clk
0:00:05.4]} 43. d4 {[%clk 0:00:38.8]} 43... a4 {[%clk 0:00:06.3]} 44. d5 {[%clk
0:00:39.1]} 44... axb3 {[%clk 0:00:07.2]} 45. axb3 {[%clk 0:00:39.8]} 45... b4
{[%clk 0:00:07.3]} 46. Re6 {[%clk 0:00:40.7]} 46... Kf7 {[%clk 0:00:07.9]} 47.
c6 {[%clk 0:00:41.6]} 47... Kf8 {[%clk 0:00:08.1]} 48. c7 {[%clk 0:00:42.2]}
48... Kf7 {[%clk 0:00:09]} 49. Kg2 {[%clk 0:00:42.5]} 49... Kg7 {[%clk
0:00:09.9]} 50. Kf3 {[%clk 0:00:43.4]} 50... Kf7 {[%clk 0:00:10.8]} 51. Ke4
{[%clk 0:00:44.3]} 51... Kg7 {[%clk 0:00:11.7]} 52. Kd4 {[%clk 0:00:45.2]} 52...
Kf7 {[%clk 0:00:12.6]} 53. Kc4 {[%clk 0:00:46.1]} 53... Kg7 {[%clk 0:00:13.5]}
54. Kxb4 {[%clk 0:00:47]} 54... Kf7 {[%clk 0:00:14.4]} 55. Kc5 {[%clk
0:00:47.9]} 55... Kg7 {[%clk 0:00:15.3]} 56. Kd4 {[%clk 0:00:48.8]} 56... Kf7
{[%clk 0:00:16.2]} 57. Ke5 {[%clk 0:00:49.7]} 57... Kg7 {[%clk 0:00:17.1]} 58.
Kf5 {[%clk 0:00:50.6]} 58... Kf7 {[%clk 0:00:18]} 59. Kxg5 {[%clk 0:00:51.5]}
59... Kg7 {[%clk 0:00:18.9]} 60. Kf5 {[%clk 0:00:52.4]} 60... Kf7 {[%clk
0:00:19.8]} 61. b4 {[%clk 0:00:53.2]} 61... Kg7 {[%clk 0:00:20.7]} 62. b5 {[%clk
0:00:54.1]} 62... Kf7 {[%clk 0:00:21.6]} 63. b6 {[%clk 0:00:54.5]} 63... Kg7
{[%clk 0:00:22.5]} 64. b7 {[%clk 0:00:55.1]} 64... Kf7 {[%clk 0:00:23.4]} 65.
b8=Q {[%clk 0:00:53.3]} 65... Kg7 {[%clk 0:00:24.3]} 1-0

[Event "*** SCC Grand Prix: Titled Tuesday Blitz"]
[Site "Chess.com"]
[Date "2020.07.21"]
[Round "4"]
[White "kasparicy"]
[Black "Nf3c5"]
[Result "1-0"]
[WhiteElo "2354"]
[BlackElo "2560"]
[TimeControl "180+1"]
[EndTime "10:38:42 PDT"]
[Termination "kasparicy won by resignation"]

1. e4 {[%clk 0:03:00.9]} 1... c5 {[%clk 0:02:59.2]} 2. Nf3 {[%clk 0:02:59.3]}
2... d6 {[%clk 0:02:58.4]} 3. d4 {[%clk 0:02:59.8]} 3... cxd4 {[%clk 0:02:59.3]}
4. Nxd4 {[%clk 0:03:00.7]} 4... Nf6 {[%clk 0:02:59.9]} 5. Nc3 {[%clk 0:03:01]}
5... a6 {[%clk 0:03:00.2]} 6. Qf3 {[%clk 0:03:01.5]} 6... g6 {[%clk 0:02:58.1]}
7. h3 {[%clk 0:03:01.3]} 7... Bg7 {[%clk 0:02:57.9]} 8. Be3 {[%clk 0:03:01.4]}
8... O-O {[%clk 0:02:57.3]} 9. O-O-O {[%clk 0:03:01.9]} 9... Nbd7 {[%clk
0:02:53.7]} 10. g4 {[%clk 0:03:02]} 10... Nb6 {[%clk 0:02:01.5]} 11. Kb1 {[%clk
0:02:57.9]} 11... Nfd7 {[%clk 0:02:00.1]} 12. h4 {[%clk 0:02:55.4]} 12... Ne5
{[%clk 0:01:59.6]} 13. Qg3 {[%clk 0:02:55.6]} 13... Bxg4 {[%clk 0:01:55.5]} 14.
f3 {[%clk 0:02:55.2]} 14... Bh5 {[%clk 0:01:50.5]} 15. Rg1 {[%clk 0:02:32.1]}
15... Nbc4 {[%clk 0:01:49.8]} 16. Bxc4 {[%clk 0:02:31.5]} 16... Nxc4 {[%clk
0:01:49.3]} 17. Bc1 {[%clk 0:02:31.8]} 17... e6 {[%clk 0:01:44.3]} 18. b3 {[%clk
0:02:27.5]} 18... Qa5 {[%clk 0:01:41]} 19. Nce2 {[%clk 0:02:20.1]} 19... Na3+
{[%clk 0:01:39.9]} 20. Bxa3 {[%clk 0:02:16.7]} 20... Qxa3 {[%clk 0:01:40.8]} 21.
Nf4 {[%clk 0:02:17]} 21... Be5 {[%clk 0:01:36.5]} 22. Qg5 {[%clk 0:02:04.2]}
22... Bxf4 {[%clk 0:01:21.5]} 23. Qxf4 {[%clk 0:02:05.1]} 23... Qc5 {[%clk
0:01:19]} 24. Rg5 {[%clk 0:02:01.9]} 24... e5 {[%clk 0:01:18.3]} 25. Qf6 {[%clk
0:01:59.9]} 25... exd4 {[%clk 0:01:11.7]} 26. Rxc5 {[%clk 0:01:58.5]} 26... dxc5
{[%clk 0:01:12.6]} 27. Rg1 {[%clk 0:01:51]} 27... Rae8 {[%clk 0:01:00.6]} 28.
Rg5 {[%clk 0:01:42.7]} 28... Re6 {[%clk 0:00:58.5]} 29. Qf4 {[%clk 0:01:42.2]}
29... b6 {[%clk 0:00:57.7]} 30. Rd5 {[%clk 0:01:27.8]} 30... Rfe8 {[%clk
0:00:53.3]} 31. Rd7 {[%clk 0:01:26]} 31... R6e7 {[%clk 0:00:51.9]} 32. Rxe7
{[%clk 0:01:26]} 32... Rxe7 {[%clk 0:00:52.8]} 33. Qb8+ {[%clk 0:01:26.4]} 33...
Kg7 {[%clk 0:00:52.2]} 34. Qxb6 {[%clk 0:01:27.3]} 34... Bxf3 {[%clk 0:00:51.3]}
35. Qxa6 {[%clk 0:01:10.5]} 35... Rxe4 {[%clk 0:00:49.1]} 36. Qd6 {[%clk
0:01:09.5]} 36... Rxh4 {[%clk 0:00:40.2]} 37. a4 {[%clk 0:01:04.7]} 37... h5
{[%clk 0:00:37.7]} 38. a5 {[%clk 0:01:04.3]} 38... Rh1+ {[%clk 0:00:30.4]} 39.
Kb2 {[%clk 0:01:04.6]} 39... h4 {[%clk 0:00:28]} 40. Qxc5 {[%clk 0:01:01.5]}
40... Rd1 {[%clk 0:00:16]} 41. Qe5+ {[%clk 0:00:59.3]} 41... Kg8 {[%clk
0:00:16.4]} 42. Qe8+ {[%clk 0:00:58.1]} 42... Kg7 {[%clk 0:00:16.4]} 43. Qe5+
{[%clk 0:00:57.8]} 43... Kh7 {[%clk 0:00:16.8]} 44. Qf4 {[%clk 0:00:57.4]} 44...
Bd5 {[%clk 0:00:16.7]} 45. Qxh4+ {[%clk 0:00:57.1]} 45... Kg7 {[%clk 0:00:17.2]}
46. a6 {[%clk 0:00:54.5]} 46... Rd2 {[%clk 0:00:16.9]} 47. Qf4 {[%clk
0:00:53.8]} 47... Rd1 {[%clk 0:00:08.5]} 48. Qe5+ {[%clk 0:00:52.6]} 1-0

[Event "*** SCC Grand Prix: Titled Tuesday Blitz"]
[Site "Chess.com"]
[Date "2020.07.21"]
[Round "4"]
[White "OparinGrigoriy"]
[Black "KaterynaLagno"]
[Result "1-0"]
[WhiteElo "2941"]
[BlackElo "2738"]
[TimeControl "180+1"]
[EndTime "10:38:43 PDT"]
[Termination "OparinGrigoriy won on time"]

1. Nf3 {[%clk 0:03:00.9]} 1... Nf6 {[%clk 0:03:00.1]} 2. g3 {[%clk 0:03:01.5]}
2... g6 {[%clk 0:03:00.2]} 3. Bg2 {[%clk 0:03:01.8]} 3... Bg7 {[%clk 0:02:57.1]}
4. c4 {[%clk 0:03:02.7]} 4... d5 {[%clk 0:02:49.9]} 5. cxd5 {[%clk 0:03:02.7]}
5... Nxd5 {[%clk 0:02:50.8]} 6. d4 {[%clk 0:03:02.8]} 6... Nb6 {[%clk 0:02:46]}
7. O-O {[%clk 0:03:02.3]} 7... O-O {[%clk 0:02:45.9]} 8. Nc3 {[%clk 0:03:02.4]}
8... Nc6 {[%clk 0:02:46.2]} 9. e3 {[%clk 0:03:02.8]} 9... Re8 {[%clk 0:02:45.9]}
10. h3 {[%clk 0:03:02.2]} 10... a5 {[%clk 0:02:41.6]} 11. d5 {[%clk 0:02:58.3]}
11... Ne5 {[%clk 0:02:39.4]} 12. Nxe5 {[%clk 0:02:57.4]} 12... Bxe5 {[%clk
0:02:40.3]} 13. e4 {[%clk 0:02:56.6]} 13... e6 {[%clk 0:02:23]} 14. Bh6 {[%clk
0:02:55.8]} 14... exd5 {[%clk 0:02:21.2]} 15. exd5 {[%clk 0:02:56.7]} 15... Nc4
{[%clk 0:02:17]} 16. Re1 {[%clk 0:02:55.6]} 16... Nd6 {[%clk 0:02:06.7]} 17. Qd2
{[%clk 0:02:54.2]} 17... Qf6 {[%clk 0:01:56.4]} 18. Bg5 {[%clk 0:02:39.4]} 18...
Qg7 {[%clk 0:01:52.4]} 19. Bh6 {[%clk 0:02:04.8]} 19... Qf6 {[%clk 0:01:51.5]}
20. Re2 {[%clk 0:02:04.4]} 20... Bd7 {[%clk 0:01:50.2]} 21. Rae1 {[%clk
0:02:02.2]} 21... Bd4 {[%clk 0:01:47.4]} 22. Bg5 {[%clk 0:01:49.9]} 22... Qg7
{[%clk 0:01:39.9]} 23. Ne4 {[%clk 0:01:21.8]} 23... Bb5 {[%clk 0:01:21.2]} 24.
Bh6 {[%clk 0:01:05.1]} 24... Qh8 {[%clk 0:01:05.7]} 25. Nxd6 {[%clk 0:00:48.2]}
25... Rxe2 {[%clk 0:01:03.7]} 26. Rxe2 {[%clk 0:00:48.1]} 26... Bxe2 {[%clk
0:01:02.9]} 27. Nxf7 {[%clk 0:00:41.5]} 27... Kxf7 {[%clk 0:00:53.1]} 28. Qxe2
{[%clk 0:00:41.7]} 28... Re8 {[%clk 0:00:47.1]} 29. Qc4 {[%clk 0:00:41.2]} 29...
b5 {[%clk 0:00:09.7]} 30. Qxc7+ {[%clk 0:00:38.5]} 30... Re7 {[%clk 0:00:10.1]}
31. Qf4+ {[%clk 0:00:24.7]} 31... Qf6 {[%clk 0:00:09.7]} 32. Qd2 {[%clk
0:00:25.2]} 32... a4 {[%clk 0:00:05.1]} 33. Bg5 {[%clk 0:00:21.1]} 33... Qe5
{[%clk 0:00:03.1]} 34. Bxe7 {[%clk 0:00:20.1]} 34... Kxe7 {[%clk 0:00:04]} 35.
b3 {[%clk 0:00:19.4]} 35... axb3 {[%clk 0:00:03.3]} 36. axb3 {[%clk 0:00:20.3]}
36... Bc3 {[%clk 0:00:03.4]} 37. Qd3 {[%clk 0:00:19.5]} 37... b4 {[%clk
0:00:03.2]} 38. Be4 {[%clk 0:00:18.1]} 38... Bd4 {[%clk 0:00:03.3]} 39. Kg2
{[%clk 0:00:18.6]} 39... Kf6 {[%clk 0:00:02.8]} 40. h4 {[%clk 0:00:19]} 40...
Kg7 {[%clk 0:00:02.7]} 41. Bf3 {[%clk 0:00:18.5]} 41... Qf6 {[%clk 0:00:03]} 42.
Qe4 {[%clk 0:00:18.5]} 42... Qb6 {[%clk 0:00:02.2]} 43. Qe7+ {[%clk 0:00:18.1]}
43... Kh6 {[%clk 0:00:01.8]} 44. d6 {[%clk 0:00:18.5]} 44... Bxf2 {[%clk
0:00:01.1]} 45. d7 {[%clk 0:00:19]} 1-0